[Event "32nd Panamerican Youth 2022"]
[Site "Montevideo"]
[Date "2022.06.27"]
[Round "3.25"]
[White "Fiorito, Joaquin"]
[Black "Amigo Quintana, Antu"]
[Result "1/2-1/2"]
[ECO "A45"]
[WhiteElo "2258"]
[BlackElo "2073"]
[Annotator "TA"]
[PlyCount "46"]
[EventDate "2022.06.26"]
[EventType "swiss"]
[EventCountry "URU"]
[SourceTitle "playchess.com"]
[Source "ChessBase"]
[SourceQuality "1"]
[TimeControl "5400+30"]

{[%evp 9,46,-15,-12,-6,-11,-35,-12,-46,-48,-48,-51,-51,-40,-27,-27,-188,-76,-131,-143,-216,-198,-183,-95,-105,-102,-92,-11,-11,-13,-13,-10,0,0,-20,7,0,14,0,32]} 1. d4 {[%emt 0:00:25]} Nf6 {[%emt 0:00:11]} 2. Nc3 {[%emt 0:00:07]} d5 {[%emt 0:00:38]} 3. Bf4 {[%emt 0:00:07]} c5 {[%emt 0:00:43]} 4. e4 {[%emt 0:00:16]} Nxe4 {[%emt 0:01:11]} 5. Bb5+ {[%emt 0:00:15]} Nc6 $1 {[%emt 0:00:06] Hoping for ...Nxc3.} 6. Nxe4 {[%emt 0:00:06] D00: 1 d4 d5: Unusual lines.} dxe4 {[%emt 0:00:05]} 7. Ne2 $1 {[%emt 0:00:06] [#]} g5 $146 {[%emt 0:00:11]} ({Predecessor:} 7... Bd7 8. dxc5 e5 9. Be3 f5 10. Nc3 Be6 11. Qe2 g6 12. Rd1 Qc8 13. Nd5 Bg7 {0-1 (44) Fiorito,F (2357)-Indjic,A (2605) Chess.com INT 2022}) 8. d5 {[%emt 0:05:05][%mdl 64] [#] Pin} Bg7 $1 {[%emt 0:01:49]} 9. O-O {[%emt 0:03:45]} a6 {[%emt 0:01:34]} 10. dxc6 {[%emt 0:04:10] Intending Qxd8+ and mate.} axb5 {[%emt 0:00:41]} 11. Qxd8+ {[%emt 0:08:16]} Kxd8 {[%emt 0:00:09]} 12. c7+ $2 {[%emt 0:00:15] [#]} (12. Rfd1+ $11 {and White stays safe.} Ke8 13. cxb7 Bxb7 14. Bxg5) 12... Ke8 {[%emt 0:07:01]} (12... Kd7 $1 $19 {and Black stays clearly on top.} 13. Rfd1+ Kc6 14. Bxg5 Bg4) 13. Be3 {[%emt 0:05:26]} (13. Bxg5 $142 Kd7 14. c3) 13... b6 $17 {[%emt 0:06:16]} ({And not} 13... Bxb2 14. Rab1 Be5 15. Rxb5 $17) 14. Rfd1 {[%emt 0:02:32]} (14. Bxg5 $17 {might work better.} Kd7 15. c3) 14... Bg4 $19 {[%emt 0:11:55]} 15. Rd2 {[%emt 0:00:04]} Be5 {[%emt 0:01:22] This bishop pair is nice.} ({Not} 15... Bxb2 16. Rad1 f6 17. c3 $11) (15... Bxe2 $19 16. Rxe2 Kd7 17. Bxg5 Bxb2 18. Rd1+ Kxc7) 16. Nc3 $17 {[%emt 0:03:50]} Bxc7 {[%emt 0:02:47]} 17. Nxb5 {[%emt 0:01:36]} Bd8 {[%emt 0:05:28]} (17... Bb8 $17 18. b4 f6 19. bxc5 bxc5 20. Bxc5 Kf7) 18. Bxg5 $11 {[%emt 0:00:29] The position is equal.} Bd7 {[%emt 0:08:07]} 19. Nc3 {[%emt 0:00:24]} Bc6 {[%emt 0:04:07]} 20. Bf4 {[%emt 0:09:04]} Rg8 {[%emt 0:06:35][%cal Og8g2]} 21. Nd5 {[%emt 0:02:37]} Ra7 {[%emt 0:03:07]} 22. Rad1 {[%emt 0:14:47]} Rd7 {[%emt 0:03:52]} 23. c4 {[%emt 0:11:07]} b5 {[%emt 0:08:45] Weighted Error Value: White=0.25 (precise) /Black=0.25 (precise)} 1/2-1/2

[Event "32nd Panamerican Youth 2022"]
[Site "Montevideo"]
[Date "2022.06.27"]
[Round "3.27"]
[White "Toro, Miguel Angel"]
[Black "Mayta Aiza, Maveric"]
[Result "1-0"]
[ECO "B64"]
[WhiteElo "2041"]
[BlackElo "1873"]
[Annotator "RC"]
[PlyCount "57"]
[EventDate "2022.06.26"]
[EventType "swiss"]
[EventCountry "URU"]
[SourceTitle "playchess.com"]
[Source "ChessBase"]
[SourceQuality "1"]
[TimeControl "5400+30"]

1. e4 {[%emt 0:00:04]} c5 {[%emt 0:00:04]} 2. Nf3 {[%emt 0:00:25]} Nc6 {[%emt 0:00:05]} 3. d4 {[%emt 0:00:11]} cxd4 {[%emt 0:00:05]} 4. Nxd4 {[%emt 0:00:05]} Nf6 {[%emt 0:00:05]} 5. Nc3 {[%emt 0:00:06]} d6 {[%emt 0:00:04]} 6. Bg5 {[%emt 0:00:07]} e6 {[%emt 0:00:04]} 7. Qd2 {[%emt 0:00:06]} Be7 {[%emt 0:00:04]} 8. O-O-O {[%emt 0:00:06]} O-O {[%emt 0:00:04]} 9. f4 {[%emt 0:00:41]} h6 {[%emt 0:00:05]} 10. h4 {[%emt 0:00:11]} Nxd4 {[%emt 0:00:17]} 11. Qxd4 {[%emt 0:00:06]} Qa5 {[%emt 0:00:05]} 12. Qe3 {[%emt 0:04:29]} e5 {[%emt 0:05:52]} 13. Nd5 {[%emt 0:16:52]} Nxd5 {[%emt 0:04:59]} 14. Rxd5 {[%emt 0:00:38]} Qd8 {[%emt 0:09:23]} 15. Bxe7 {[%emt 0:09:08]} Qxe7 {[%emt 0:00:12]} 16. f5 {[%emt 0:00:07]} b6 {[%emt 0:03:08]} 17. g4 {[%emt 0:00:42]} Bb7 {[%emt 0:00:21]} 18. Rd2 {[%emt 0:01:52]} Rac8 {[%emt 0:06:50]} 19. g5 {[%emt 0:01:55]} h5 {[%emt 0:00:49]} 20. Bh3 {[%emt 0:13:38]} Rc4 {[%emt 0:02:48]} 21. f6 {[%emt 0:00:37]} Qc7 {[%emt 0:00:35]} 22. fxg7 {[%emt 0:00:11]} Kxg7 {[%emt 0:06:42]} 23. Bf5 {[%emt 0:01:05]} Qc5 {[%emt 0:11:02]} 24. Qf3 {[%emt 0:01:22]} d5 {[%emt 0:01:23]} 25. Rf1 {[%emt 0:02:05]} dxe4 {[%emt 0:01:39]} 26. Qxh5 {[%emt 0:01:22]} Rh8 {[%emt 0:00:08]} 27. Bh7 {[%emt 0:00:29]} Rxc2+ {[%emt 0:06:37]} 28. Rxc2 {[%emt 0:01:55]} Qe3+ {[%emt 0:00:44]} 29. Kb1 {[%emt 0:00:22]} 1-0

[Event "32nd Panamerican Youth 2022"]
[Site "Montevideo"]
[Date "2022.06.27"]
[Round "3.28"]
[White "Vasquez Vargas, Henry Richard"]
[Black "Meza Gorrini, Francesco"]
[Result "1-0"]
[ECO "A57"]
[WhiteElo "2006"]
[BlackElo "1843"]
[Annotator "RC"]
[PlyCount "51"]
[EventDate "2022.06.26"]
[EventType "swiss"]
[EventCountry "URU"]
[SourceTitle "playchess.com"]
[Source "ChessBase"]
[SourceQuality "1"]
[TimeControl "5400+30"]

1. d4 {[%emt 0:00:02]} Nf6 {[%emt 0:00:11]} 2. c4 {[%emt 0:00:46]} c5 {[%emt 0:00:15]} 3. d5 {[%emt 0:00:26]} b5 {[%emt 0:00:08]} 4. Qc2 {[%emt 0:00:34]} b4 {[%emt 0:00:11]} 5. e4 {[%emt 0:01:02]} d6 {[%emt 0:00:19]} 6. f4 {[%emt 0:03:42]} g6 {[%emt 0:00:19]} 7. Nf3 {[%emt 0:01:27]} Bg7 {[%emt 0:00:44]} 8. Bd3 {[%emt 0:01:31]} O-O {[%emt 0:00:47]} 9. O-O {[%emt 0:03:25]} a5 {[%emt 0:02:47]} 10. e5 {[%emt 0:03:10]} dxe5 {[%emt 0:05:06]} 11. fxe5 {[%emt 0:00:56]} Nh5 {[%emt 0:00:40]} 12. Bg5 Qc7 {[%emt 0:07:32]} 13. Re1 {[%emt 0:05:12]} Bg4 {[%emt 0:06:08]} 14. Nbd2 {[%emt 0:02:10]} h6 {[%emt 0:04:14]} 15. Be3 {[%emt 0:09:19]} Nd7 {[%emt 0:06:52]} 16. e6 {[%emt 0:03:59]} Ne5 {[%emt 0:15:41]} 17. exf7+ {[%emt 0:00:15]} Rxf7 {[%emt 0:11:25]} 18. Bxg6 {[%emt 0:02:54]} Rff8 {[%emt 0:05:45]} 19. Be4 {[%emt 0:04:45]} Nf4 {[%emt 0:03:13]} 20. d6 {[%emt 0:05:00]} Qxd6 {[%emt 0:04:00]} 21. Bxa8 {[%emt 0:01:17]} Rxa8 {[%emt 0:00:54]} 22. Bxf4 {[%emt 0:00:46]} Nxf3+ {[%emt 0:00:19]} 23. gxf3 {[%emt 0:00:34]} Qxf4 {[%emt 0:03:00]} 24. fxg4 {[%emt 0:01:57]} Be5 {[%emt 0:00:20]} 25. Rxe5 {[%emt 0:01:21]} Qxe5 {[%emt 0:00:47]} 26. Qe4 {[%emt 0:00:42]} 1-0

[Event "32nd Panamerican Youth 2022"]
[Site "Montevideo"]
[Date "2022.06.27"]
[Round "3.29"]
[White "Borda Rodas, Anapaola S."]
[Black "Garcia Andrada, Heidy Nicole"]
[Result "1/2-1/2"]
[ECO "B32"]
[WhiteElo "2141"]
[BlackElo "1918"]
[Annotator "RC"]
[PlyCount "41"]
[EventDate "2022.06.26"]
[EventType "swiss"]
[EventCountry "URU"]
[SourceTitle "playchess.com"]
[Source "ChessBase"]
[SourceQuality "1"]
[TimeControl "5400+30"]

1. e4 {[%emt 0:00:30]} c5 {[%emt 0:05:35]} 2. Nf3 {[%emt 0:01:26]} Nc6 {[%emt 0:00:06]} 3. d4 {[%emt 0:00:51]} cxd4 {[%emt 0:00:07]} 4. Nxd4 {[%emt 0:00:08]} Qb6 {[%emt 0:00:04]} 5. Nb3 {[%emt 0:04:37]} Nf6 {[%emt 0:00:09]} 6. Nc3 {[%emt 0:01:15]} e6 {[%emt 0:00:06]} 7. Bd3 {[%emt 0:00:57]} Be7 {[%emt 0:06:05]} 8. Be3 {[%emt 0:08:27]} Qc7 {[%emt 0:00:08]} 9. f4 {[%emt 0:00:47]} d6 {[%emt 0:00:19]} 10. O-O {[%emt 0:01:15]} a6 {[%emt 0:04:19]} 11. a4 {[%emt 0:06:39]} b6 {[%emt 0:08:32]} 12. Qe2 {[%emt 0:08:24]} O-O {[%emt 0:06:52]} 13. g4 {[%emt 0:08:50]} g6 {[%emt 0:10:51]} 14. g5 {[%emt 0:04:20]} Nh5 {[%emt 0:03:39]} 15. f5 {[%emt 0:11:04]} f6 {[%emt 0:10:45]} 16. e5 {[%emt 0:07:22]} Nxe5 {[%emt 0:02:34]} 17. fxg6 {[%emt 0:00:16]} hxg6 {[%emt 0:04:51]} 18. Bxg6 {[%emt 0:04:23]} Ng7 {[%emt 0:00:16]} 19. Be4 {[%emt 0:02:47]} Bb7 {[%emt 0:02:04]} 20. gxf6 {[%emt 0:01:48]} Bxf6 {[%emt 0:03:26]} 21. Bd4 {[%emt 0:08:38]} 1/2-1/2

[Event "32nd Panamerican Youth 2022"]
[Site "Montevideo"]
[Date "2022.06.27"]
[Round "3.30"]
[White "Matus, Nastassja"]
[Black "Perez Hernandez, Vicmary C."]
[Result "1-0"]
[ECO "D71"]
[WhiteElo "1908"]
[BlackElo "1909"]
[Annotator "RC"]
[PlyCount "49"]
[EventDate "2022.06.26"]
[EventType "swiss"]
[EventCountry "URU"]
[SourceTitle "playchess.com"]
[Source "ChessBase"]
[SourceQuality "1"]
[TimeControl "5400+30"]

1. d4 {[%emt 0:00:03]} Nf6 {[%emt 0:00:26]} 2. c4 {[%emt 0:00:07]} g6 {[%emt 0:00:41]} 3. g3 {[%emt 0:00:09]} Bg7 {[%emt 0:01:01]} 4. Bg2 {[%emt 0:00:17]} O-O {[%emt 0:00:12]} 5. Nc3 {[%emt 0:00:06]} d6 {[%emt 0:00:05]} 6. e4 {[%emt 0:00:18]} Nbd7 {[%emt 0:00:26]} 7. Nge2 {[%emt 0:00:45]} e5 {[%emt 0:00:26]} 8. O-O {[%emt 0:02:24]} exd4 {[%emt 0:00:38]} 9. Nxd4 {[%emt 0:00:57]} Re8 {[%emt 0:00:17]} 10. Rb1 {[%emt 0:07:31]} Nc5 {[%emt 0:02:58]} 11. f3 {[%emt 0:07:15]} Bd7 {[%emt 0:03:22]} 12. b3 {[%emt 0:02:33]} h5 {[%emt 0:02:48]} 13. Bb2 {[%emt 0:05:42]} h4 {[%emt 0:02:18]} 14. g4 {[%emt 0:03:07]} Nh7 {[%emt 0:05:37]} 15. h3 {[%emt 0:07:36]} Ng5 {[%emt 0:05:38]} 16. Nd5 {[%emt 0:03:50]} c6 {[%emt 0:00:31]} 17. Nf4 {[%emt 0:02:03]} Qe7 {[%emt 0:07:33]} 18. Nde2 {[%emt 0:06:36]} Be5 {[%emt 0:12:10]} 19. b4 {[%emt 0:07:52]} Nce6 {[%emt 0:01:08]} 20. Nd3 {[%emt 0:01:43]} Bxb2 {[%emt 0:08:07]} 21. Rxb2 {[%emt 0:00:29]} Nc7 {[%emt 0:00:02]} 22. Rd2 {[%emt 0:10:40]} Rad8 {[%emt 0:01:36]} 23. Nf2 {[%emt 0:05:40]} d5 {[%emt 0:01:22]} 24. cxd5 {[%emt 0:02:14]} cxd5 {[%emt 0:00:06]} 25. Nc3 {[%emt 0:00:51]} 1-0

[Event "32nd Panamerican Youth 2022"]
[Site "Montevideo"]
[Date "2022.06.27"]
[Round "3.34"]
[White "Vazquez, Facundo"]
[Black "Hernandez, Jeronimo"]
[Result "1/2-1/2"]
[ECO "D35"]
[WhiteElo "2357"]
[BlackElo "2121"]
[Annotator "TA"]
[PlyCount "92"]
[EventDate "2022.06.26"]
[EventType "swiss"]
[EventCountry "URU"]
[SourceTitle "playchess.com"]
[Source "ChessBase"]
[SourceQuality "1"]
[TimeControl "5400+30"]

{[%evp 13,92,10,20,18,17,15,21,17,17,11,26,28,22,-11,-20,-79,-83,-152,-101,-105,-103,-110,-114,-133,-127,-82,-49,-160,-157,-285,-190,-170,-192,-163,-180,-144,-149,-143,-80,-146,-70,-68,-83,-75,-70,-70,-66,-74,187,185,193,181,181,181,188,181,206,169,169,-740,-737,-818,-825,-919,-919,-621,-893,-833,-772,-2114,-1964,-1964,-2018,-1852,-1829,-1620,-1136,-5710,-5539,-1718,-1081]} 1. d4 d5 2. c4 e6 3. Nc3 Nf6 4. cxd5 exd5 5. Bg5 c6 6. e3 Bd6 7. Bd3 O-O 8. Qc2 {[%cal Od3h7] D35: Queen's Gambit Declined: Exchange Variation.} h6 9. Bh4 Re8 10. Nge2 {The position is equal.} a5 11. h3 Na6 {[%cal Bb8a6,Ba6c7,Bc7e6][%mdl 32]} 12. a3 {Prevents Nb4.} Nc7 13. g4 Ne6 {[#]} 14. O-O-O $146 (14. Kf1 $11) ({Predecessor:} 14. f3 b5 15. e4 dxe4 16. fxe4 Be7 17. Bf2 Bb7 18. e5 Nd7 19. Be4 b4 20. Na4 {0-1 (26) Dragun,K (2590)-Xiong,J (2686) Saint Louis 2022}) 14... b5 $17 {[%cal Bb7b5,Bb5b4][%mdl 32]} 15. f4 (15. Kb1 $142) 15... g5 (15... b4 $142 16. g5 Nh5) 16. fxg5 hxg5 17. Bg3 b4 18. Bxd6 Qxd6 19. Rdf1 Ng7 20. Na4 (20. Nd1 $15) 20... bxa3 21. b3 (21. Nc5 $17 {keeps fighting.}) 21... Rb8 22. Rf3 Ne4 23. Nc5 a4 24. Nxa4 {[#]} ({Wrong is} 24. Bxe4 $2 dxe4 25. Rxf7 Kxf7 $19) 24... Qb4 $1 25. Nec3 Nxc3 (25... Be6 $142 {And now ...c5 would win.} 26. Kb1 c5) 26. Nxc3 {[#]} ({White should play} 26. Qxc3 Qxc3+ 27. Nxc3) 26... Qxb3 ({Black should try} 26... Re7 $1 $17 27. Rhf1 (27. Bh7+ Kf8 $17) 27... Qxb3 28. Bh7+ Kf8) 27. Qxb3 $15 Rxb3 28. Kd2 Rb2+ 29. Bc2 $1 Be6 30. Na4 $1 Reb8 {[%mdl 8192]} (30... Rb5 $17 {keeps the pressure on.}) 31. Nxb2 $18 axb2 32. Rb1 Ne8 33. Kc3 Nd6 34. Rxb2 Ra8 35. Bd3 Ra3+ 36. Rb3 $4 {[%mdl 8192]} (36. Kd2 $18) 36... Ne4+ $19 {Black is clearly winning.} 37. Kc2 Rxb3 {[%mdl 64] Deflection} 38. Kxb3 {[%mdl 4096] Endgame KRB-KBN} Nd2+ 39. Kb4 Nxf3 40. Kc5 Ne1 41. Bb1 Ng2 42. e4 Nf4 43. Kxc6 Kg7 44. Kd6 Kf6 45. e5+ Kg7 46. Bf5 Kf8 {[%mdl 32768] Weighted Error Value: White=0.56/Black=0.26 (precise) . An unexpected result.} 1/2-1/2

[Event "32nd Panamerican Youth 2022"]
[Site "Montevideo"]
[Date "2022.06.27"]
[Round "3.35"]
[White "Jaque Gutierrez, Matias"]
[Black "Castro Silva, Moises Antonio"]
[Result "1/2-1/2"]
[ECO "E68"]
[WhiteElo "2011"]
[BlackElo "2053"]
[Annotator "RC"]
[PlyCount "38"]
[EventDate "2022.06.26"]
[EventType "swiss"]
[EventCountry "URU"]
[SourceTitle "playchess.com"]
[Source "ChessBase"]
[SourceQuality "1"]
[TimeControl "5400+30"]

1. d4 {[%emt 0:00:10]} Nf6 {[%emt 0:00:20]} 2. c4 {[%emt 0:00:15]} g6 {[%emt 0:00:43]} 3. g3 {[%emt 0:00:30]} Bg7 {[%emt 0:02:01]} 4. Bg2 {[%emt 0:00:19]} O-O {[%emt 0:04:15]} 5. Nc3 {[%emt 0:00:19]} d6 {[%emt 0:00:38]} 6. Nf3 {[%emt 0:00:19]} Nbd7 {[%emt 0:02:20]} 7. O-O {[%emt 0:00:24]} e5 {[%emt 0:02:34]} 8. e4 {[%emt 0:00:23]} exd4 9. Nxd4 {[%emt 0:00:20]} Re8 {[%emt 0:04:37]} 10. h3 {[%emt 0:00:49]} c6 {[%emt 0:07:57]} 11. Re1 {[%emt 0:08:53]} Qc7 {[%emt 0:01:34]} 12. Bf4 {[%emt 0:03:59]} a6 {[%emt 0:16:10]} 13. b3 {[%emt 0:07:56]} Nc5 {[%emt 0:18:57]} 14. Qd2 {[%emt 0:06:49]} Nh5 15. Be3 {[%emt 0:06:57]} Ne6 {[%emt 0:07:05]} 16. Rad1 {[%emt 0:06:54]} Bf8 {[%emt 0:07:49]} 17. g4 {[%emt 0:07:24]} Nhg7 {[%emt 0:01:27]} 18. f4 {[%emt 0:06:37]} Nxd4 {[%emt 0:10:16]} 19. Bxd4 {[%emt 0:00:16]} b5 {[%emt 0:01:46]} 1/2-1/2

[Event "32nd Panamerican Youth 2022"]
[Site "Montevideo"]
[Date "2022.06.27"]
[Round "3.36"]
[White "Rojas Salas, Steven"]
[Black "Ibarra, Juan Martin"]
[Result "1/2-1/2"]
[ECO "D45"]
[WhiteElo "2210"]
[BlackElo "2165"]
[Annotator "RC"]
[PlyCount "22"]
[EventDate "2022.06.26"]
[EventType "swiss"]
[EventCountry "URU"]
[SourceTitle "playchess.com"]
[Source "ChessBase"]
[SourceQuality "1"]
[TimeControl "5400+30"]

1. c4 {[%emt 0:04:37]} c6 {[%emt 0:01:49]} 2. d4 {[%emt 0:00:26]} d5 {[%emt 0:00:05]} 3. Nc3 {[%emt 0:00:24]} Nf6 {[%emt 0:00:05]} 4. e3 {[%emt 0:02:04]} e6 {[%emt 0:00:05]} 5. Nf3 {[%emt 0:02:13]} Nbd7 {[%emt 0:00:06]} 6. Be2 {[%emt 0:02:26]} dxc4 {[%emt 0:01:49]} 7. a4 {[%emt 0:03:28]} Bd6 {[%emt 0:06:34]} 8. Nd2 {[%emt 0:00:43]} O-O {[%emt 0:06:00]} 9. Nxc4 {[%emt 0:00:37]} Bb4 {[%emt 0:06:11]} 10. a5 {[%emt 0:07:18]} Qc7 {[%emt 0:13:56]} 11. Ra4 {[%emt 0:16:11]} Nd5 {[%emt 0:14:53]} 1/2-1/2

[Event "32nd Panamerican Youth 2022"]
[Site "Montevideo"]
[Date "2022.06.28"]
[Round "4.2"]
[White "Rodriguez Barrientos, Johan Raziel"]
[Black "Ling, Chenxuan"]
[Result "1/2-1/2"]
[ECO "B21"]
[WhiteElo "1111"]
[BlackElo "1597"]
[Annotator "NA RC"]
[PlyCount "134"]
[EventDate "2022.06.26"]
[EventType "swiss"]
[EventCountry "URU"]
[SourceTitle "playchess.com"]
[Source "ChessBase"]
[SourceQuality "1"]
[TimeControl "5400+30"]

1. e4 {[%emt 0:00:10]} c5 {[%emt 0:00:07]} 2. d4 {[%emt 0:00:22]} cxd4 {[%emt 0:00:10]} 3. c3 {[%emt 0:00:13]} Nf6 {[%emt 0:00:17]} 4. e5 {[%emt 0:00:30]} Nd5 {[%emt 0:00:13]} 5. Nf3 {[%emt 0:01:43]} e6 {[%emt 0:00:28]} 6. cxd4 {[%emt 0:03:24]} d6 {[%emt 0:00:29]} 7. Bc4 Be7 {[%emt 0:00:30]} 8. O-O {[%emt 0:07:02]} O-O {[%emt 0:00:22]} 9. Nc3 {[%emt 0:09:42]} Nxc3 10. bxc3 {[%emt 0:00:17]} Qc7 {[%emt 0:02:29]} 11. Qd3 {[%emt 0:03:51]} Nd7 {[%emt 0:02:28]} 12. exd6 Bxd6 {[%emt 0:01:21]} 13. Bb3 {[%emt 0:20:07]} b6 {[%emt 0:11:19]} 14. Ng5 Nf6 15. Bc2 g6 16. Qf3 {[%emt 0:26:14]} Nd5 {[%emt 0:05:01]} 17. Bb3 {[%emt 0:07:59]} Bb7 {[%emt 0:01:14]} 18. Bxd5 {[%emt 0:02:50]} Bxd5 {[%emt 0:00:09]} 19. Qf6 {[%emt 0:00:32]} Be7 20. Qf4 {[%emt 0:03:33]} Qxf4 {[%emt 0:10:28]} 21. Bxf4 {[%emt 0:00:21]} Rac8 {[%emt 0:00:10]} 22. Rac1 {[%emt 0:01:44]} Bxa2 {[%emt 0:00:21]} 23. Ne4 {[%emt 0:01:37]} Bc4 {[%emt 0:01:21]} 24. Rfd1 {[%emt 0:00:52]} Rfd8 {[%emt 0:00:55]} 25. Be5 {[%emt 0:02:49]} f5 {[%emt 0:05:42]} 26. Nd2 {[%emt 0:01:07]} Bd5 {[%emt 0:12:05]} 27. c4 {[%emt 0:01:07]} Bc6 {[%emt 0:00:22]} 28. Nf3 {[%emt 0:01:41]} Be4 {[%emt 0:06:03]} 29. Nd2 {[%emt 0:01:17]} Bb7 {[%emt 0:00:13]} 30. Nf3 {[%emt 0:00:22]} Kf7 {[%emt 0:01:32]} 31. Bf4 {[%emt 0:01:30]} Kg7 {[%emt 0:08:02]} 32. Re1 {[%emt 0:01:20]} Bxf3 {[%emt 0:00:55]} 33. gxf3 {[%emt 0:00:09]} Kf7 {[%emt 0:00:05]} 34. Be5 {[%emt 0:00:33]} Bd6 {[%emt 0:02:30]} 35. Bxd6 {[%emt 0:00:39]} Rxd6 {[%emt 0:00:07]} 36. Red1 {[%emt 0:00:13]} Rdc6 {[%emt 0:04:01]} 37. d5 {[%emt 0:00:48]} Rxc4 {[%emt 0:01:36]} 38. Rxc4 {[%emt 0:00:42]} Rxc4 {[%emt 0:00:05]} 39. d6 {[%emt 0:00:07]} Rc8 {[%emt 0:00:04]} 40. Kf1 {[%emt 0:00:26]} Rd8 {[%emt 0:00:36]} 41. Ke2 {[%emt 0:00:22]} e5 {[%emt 0:00:06]} 42. Ke3 {[%emt 0:00:46]} Ke6 {[%emt 0:00:07]} 43. Ra1 {[%emt 0:00:18]} Rd7 {[%emt 0:00:09]} 44. f4 {[%emt 0:00:22]} exf4+ {[%emt 0:00:13]} 45. Kxf4 {[%emt 0:00:09]} Kxd6 {[%emt 0:00:09]} 46. Kg5 {[%emt 0:00:32]} a5 {[%emt 0:00:27]} 47. Kh6 {[%emt 0:00:36]} Ra7 {[%emt 0:00:23]} 48. Rd1+ {[%emt 0:00:46]} Kc6 {[%emt 0:00:10]} 49. Rc1+ {[%emt 0:00:36]} Kb5 {[%emt 0:00:10]} 50. Rb1+ {[%emt 0:00:15]} Ka6 {[%emt 0:00:06]} 51. h4 {[%emt 0:00:30]} b5 {[%emt 0:00:11]} 52. Rc1 {[%emt 0:00:53]} a4 {[%emt 0:00:06]} 53. Rc6+ {[%emt 0:00:23]} Ka5 {[%emt 0:00:06]} 54. f4 {[%emt 0:00:28]} a3 {[%emt 0:00:04]} 55. Rc1 {[%emt 0:00:42]} b4 {[%emt 0:00:05]} 56. Rc5+ {[%emt 0:01:08]} Ka4 {[%emt 0:00:08]} 57. Rc1 {[%emt 0:01:03]} a2 {[%emt 0:00:07]} 58. Ra1 {[%emt 0:00:17]} b3 {[%emt 0:00:06]} 59. Kg5 {[%emt 0:00:26]} Kb4 {[%emt 0:00:13]} 60. Kh6 {[%emt 0:00:19]} b2 {[%emt 0:00:10]} 61. Rxa2 {[%emt 0:00:56]} Rxa2 {[%emt 0:00:33]} 62. h5 {[%emt 0:00:16]} b1=Q {[%emt 0:00:17]} 63. hxg6 {[%emt 0:00:50]} hxg6 {[%emt 0:00:18]} 64. Kg5 {[%emt 0:00:13]} Qg1+ {[%emt 0:00:06]} 65. Kf6 Ra6+ {[%emt 0:00:10]} 66. Ke5 {[%emt 0:00:38]} Qe3+ {[%emt 0:00:08]} 67. Kd5 {[%emt 0:00:34]} Qe4# {[%emt 0:00:07]} 1/2-1/2

[Event "32nd Panamerican Youth 2022"]
[Site "Montevideo"]
[Date "2022.06.28"]
[Round "4.3"]
[White "Jimenez Salas, Fabiana"]
[Black "Li, Iris"]
[Result "0-1"]
[ECO "C28"]
[WhiteElo "1117"]
[BlackElo "1365"]
[Annotator "NA RC"]
[PlyCount "128"]
[EventDate "2022.06.26"]
[EventType "swiss"]
[EventCountry "URU"]
[SourceTitle "playchess.com"]
[Source "ChessBase"]
[SourceQuality "1"]
[TimeControl "5400+30"]

1. e4 {[%emt 0:00:05]} e5 {[%emt 0:00:03]} 2. Nc3 {[%emt 0:00:14]} Nf6 {[%emt 0:00:05]} 3. Bc4 {[%emt 0:00:26]} Nc6 {[%emt 0:01:06]} 4. d3 {[%emt 0:00:35]} Bc5 {[%emt 0:02:13]} 5. f4 {[%emt 0:00:54]} d6 {[%emt 0:02:30]} 6. h3 {[%emt 0:00:30]} Na5 {[%emt 0:05:58]} 7. Bb5+ {[%emt 0:10:04]} c6 {[%emt 0:01:29]} 8. Ba4 {[%emt 0:01:22]} b5 {[%emt 0:02:32]} 9. Bb3 Nxb3 {[%emt 0:04:53]} 10. axb3 {[%emt 0:03:56]} exf4 {[%emt 0:00:44]} 11. Bxf4 {[%emt 0:00:56]} O-O {[%emt 0:07:49]} 12. Nf3 {[%emt 0:11:30]} Re8 {[%emt 0:03:59]} 13. Qd2 {[%emt 0:05:46]} a5 {[%emt 0:14:24]} 14. Be3 {[%emt 0:07:12]} Bxe3 {[%emt 0:07:29]} 15. Qxe3 {[%emt 0:01:17]} d5 {[%emt 0:05:33]} 16. O-O {[%emt 0:04:22]} b4 {[%emt 0:05:00]} 17. Na4 {[%emt 0:02:39]} dxe4 {[%emt 0:02:13]} 18. dxe4 {[%emt 0:03:48]} Rxe4 {[%emt 0:03:12]} 19. Qc5 {[%emt 0:08:26]} Qd5 {[%emt 0:07:27]} 20. Qf2 {[%emt 0:02:54]} Qd6 {[%emt 0:06:30]} 21. Rad1 {[%emt 0:02:03]} Qe7 {[%emt 0:01:35]} 22. Rd2 {[%emt 0:02:52]} Ba6 {[%emt 0:01:57]} 23. Rfd1 {[%emt 0:05:09]} Re8 {[%emt 0:03:06]} 24. c4 {[%emt 0:11:26]} bxc3 {[%emt 0:03:47]} 25. Nxc3 {[%emt 0:00:52]} Re3 {[%emt 0:01:44]} 26. Kh1 {[%emt 0:03:57]} Be2 {[%emt 0:02:20]} 27. Nxe2 {[%emt 0:01:23]} Rxe2 {[%emt 0:00:04]} 28. Rxe2 {[%emt 0:00:15]} Qxe2 {[%emt 0:00:05]} 29. Qxe2 {[%emt 0:00:28]} Rxe2 {[%emt 0:00:04]} 30. Rd8+ {[%emt 0:01:30]} Re8 {[%emt 0:00:06]} 31. Rxe8+ {[%emt 0:00:33]} Nxe8 {[%emt 0:00:04]} 32. Kh2 {[%emt 0:01:15]} Nd6 {[%emt 0:01:08]} 33. Kg3 {[%emt 0:00:38]} Ne4+ {[%emt 0:00:39]} 34. Kf4 {[%emt 0:00:20]} Nc5 {[%emt 0:00:09]} 35. Nd2 {[%emt 0:00:51]} Nd3+ {[%emt 0:00:47]} 36. Ke4 {[%emt 0:00:26]} Nxb2 {[%emt 0:00:20]} 37. Kd4 {[%emt 0:00:21]} a4 {[%emt 0:01:44]} 38. bxa4 {[%emt 0:00:13]} Nxa4 {[%emt 0:00:08]} 39. Kc4 {[%emt 0:00:11]} f5 {[%emt 0:00:27]} 40. Kb4 {[%emt 0:00:14]} Nb2 {[%emt 0:00:20]} 41. Kc5 {[%emt 0:00:13]} Nd3+ {[%emt 0:00:08]} 42. Kxc6 {[%emt 0:00:20]} Nf4 {[%emt 0:00:06]} 43. Kd6 {[%emt 0:00:23]} Nxg2 {[%emt 0:00:07]} 44. Ke5 {[%emt 0:00:12]} g6 {[%emt 0:00:23]} 45. Nf3 {[%emt 0:00:13]} Kg7 {[%emt 0:00:37]} 46. h4 {[%emt 0:00:14]} Ne3 {[%emt 0:00:21]} 47. Ng5 {[%emt 0:00:38]} Ng2 {[%emt 0:00:43]} 48. Nf3 {[%emt 0:00:23]} Kh6 {[%emt 0:00:21]} 49. Kd4 {[%emt 0:01:09]} Kh5 {[%emt 0:00:14]} 50. Ke5 {[%emt 0:01:16]} Nxh4 {[%emt 0:00:06]} 51. Nh2 {[%emt 0:01:51]} Kg5 {[%emt 0:00:17]} 52. Nf1 {[%emt 0:00:55]} Nf3+ {[%emt 0:00:16]} 53. Kd5 {[%emt 0:00:18]} f4 {[%emt 0:00:19]} 54. Ke4 {[%emt 0:00:21]} Kg4 {[%emt 0:00:04]} 55. Kd3 {[%emt 0:00:55]} h5 {[%emt 0:00:07]} 56. Ke2 {[%emt 0:00:10]} h4 {[%emt 0:00:07]} 57. Kf2 {[%emt 0:00:11]} h3 {[%emt 0:00:05]} 58. Ke2 {[%emt 0:00:17]} h2 {[%emt 0:00:07]} 59. Nxh2+ {[%emt 0:00:05]} Nxh2 {[%emt 0:00:05]} 60. Kf2 {[%emt 0:00:03]} f3 {[%emt 0:00:08]} 61. Kg1 {[%emt 0:01:15]} Kg3 {[%emt 0:00:05]} 62. Kh1 {[%emt 0:00:10]} g5 {[%emt 0:00:05]} 63. Kg1 {[%emt 0:00:10]} f2+ {[%emt 0:00:04]} 64. Kh1 {[%emt 0:00:17]} f1=Q# {[%emt 0:00:07]} 0-1